Cogmind - Beta 14 @@@ ROGUE MODE // 2025.01.11 @ 19:25:22 Player: star Result: Self-destructed Performance ------------- Evolutions (6) 3000 Regions Visited (9) 1800 Robots Destroyed (105) 525 Value Destroyed (3768) 3768 Prototype IDs (8) 160 Alien Tech Used (0) 0 Bonus (-1067) -1067 TOTAL SCORE: 8186 Bonus ------- High Alert Combat Kills 24 Friendly Fire -1091 Cogmind --------- Core Integrity 709/1150 Matter 45/300 Energy 150/150 System Corruption 11% Temperature Cool (0) Movement Core (100) Ox1 Location -4/Factory Parts ------- > --- POWER (2) -------- Micro Fission Core > --- PROPULSION (5) --- (None) > --- UTILITY (8) ------ Enhanced Optical Array Improved Salvage Targeting Computer Improved Target Analyzer Core Analyzer > --- WEAPON (4) ------- (None) > --- INVENTORY (5) ---- Heavy Treads Nanoactuators Component Analysis Suite Scatter Rocket Array Peak State ------------ > --- POWER ------------ Reinforced Deuterium Engine Micro Fission Core > --- PROPULSION ------- Improved Treads Improved Treads Improved Medium Treads Heavy Treads > --- UTILITY ---------- Cryofiber Web Improved Heat Sink Improved Heat Sink Large Storage Unit Improved Salvage Targeting Computer Improved Target Analyzer Core Analyzer Transmission Jammer > --- WEAPON ----------- High-powered Shock Rifle Tesla Rifle Field Laser Advanced Beam Rifle > --- INVENTORY -------- Micro Fission Core Improved Gravmag System Antigrav System Antigrav System Antigrav System Improved Cooling System Matter Compressor Improved Target Analyzer Component Analysis Suite Component Analysis Suite Tesla Rifle Flak Gun Scatter Rocket Array Scatter Rocket Array Improved Datajack [Rating: 83] Favorites ----------- Power Heavy Ion Engine Engine Heavy Ion Engine Power Core Micro Fission Core Propulsion Armored Treads Treads Armored Treads Leg Flexi-carbon Leg Wheel Compact Wheel Hover Unit Antigrav System Utility Large Storage Unit Device Improved Heat Sink Storage Large Storage Unit Processor Improved Salvage Targeting Computer Protection Reflective Plating Weapon Gatling Laser Energy Gun Gatling Laser Ballistic Gun Flak Gun Launcher Scatter Rocket Array Impact Weapon Hammer Special Melee Weapon Improved Datajack Build | -11 -10 -10 -9 -8 -8 -7 -6 -5 -4 ------- Run | Yrd Mat Min Mat Mat Sto Fac Fac Fac Fac Slots Evolved 12 | . . . 2 2 . 2 2 2 2 Power 1 | . . . . . . . . 1 . Propulsion 3 | . . . . 2 . . . . 1 Utility 6 | . . . 2 . . . 2 1 1 Weapon 2 | . . . . . . 2 . . . Parts Attached 121 | 6 5 1 6 4 19 18 10 26 26 Power 16 | 1 1 . 3 . . 2 1 4 4 Engine 10 | 1 1 . 3 . . 2 1 1 1 Core 6 | . . . . . . . . 3 3 Reactor . | . . . . . . . . . . Propulsion 28 | 2 . . . 2 6 5 1 6 6 Treads 17 | . . . . 1 6 4 1 3 2 Leg 1 | . . . . . . . . 1 . Wheel 3 | 2 . . . 1 . . . . . Hover 7 | . . . . . . 1 . 2 4 Flight . | . . . . . . . . . . Utility 28 | 1 2 1 1 2 5 4 3 5 4 Device 9 | . . . . . 2 1 2 2 2 Storage 2 | 1 1 . . . . . . . . Processor 8 | . . 1 . 1 1 1 . 2 2 Hackware . | . . . . . . . . . . Protection 9 | . 1 . 1 1 2 2 1 1 . Artifact . | . . . . . . . . . . Weapon 49 | 2 2 . 2 . 8 7 5 11 12 Energy Gun 18 | 2 . . 2 . 4 . 2 2 6 Energy Cannon . | . . . . . . . . . . Ballistic Gun 20 | . 2 . . . 2 5 1 8 2 Ballistic Cannon . | . . . . . . . . . . Launcher 6 | . . . . . . . 2 1 3 Special Weapon . | . . . . . . . . . . Impact Weapon 3 | . . . . . 2 1 . . . Slashing Weapon . | . . . . . . . . . . Piercing Weapon . | . . . . . . . . . . Special Melee Weapon 2 | . . . . . . 1 . . 1 Unidentified Prototypes 4 | . . . 2 . . 1 1 . . Corrupted Parts 1 | . . . . . . . . 1 . System Corruption 6 | . . . . . . . . 6 . Parts Lost 48 | . 2 . . . 4 2 5 15 20 Power 5 | . 1 . . . . . 1 2 1 Propulsion 16 | . . . . . 2 1 2 5 6 Utility 11 | . . . . . 1 . 1 4 5 Weapon 16 | . 1 . . . 1 1 1 4 8 Highest Loss Streak 6 | . 2 . . . 1 2 4 6 6 To Critical Strikes . | . . . . . . . . . . Average Slot Usage (%) 91 | . 92 100 86 85 97 92 94 78 85 Engine 7 | . 13 14 11 9 9 7 6 . 4 Core 1 | . . . . . . . . 8 3 Treads 17 | . . . . 5 18 28 24 9 15 Wheel 7 | . 28 28 22 18 15 . . . . Device 8 | . . . . . 5 3 16 14 18 Storage 8 | . 19 14 11 9 9 7 6 5 4 Processor 11 | . . 9 11 17 17 11 6 8 13 Protection 4 | . 2 4 9 9 3 6 6 3 1 Energy Gun 11 | . 13 . 20 18 14 7 11 11 11 Ballistic Gun 9 | . 14 28 1 . 2 16 13 7 3 Peak Build Rating 83 | 6 10 10 14 24 32 45 55 79 83 Average Rating 40 | 4 8 10 13 21 29 40 51 55 72 On Entrance 25 | . 6 10 10 14 24 31 43 51 66 Naked Turns . | . . . . . . . . . . Heaviest Build 70 | 14 36 34 37 39 40 51 56 61 70 Greatest Support 146 | 26 26 26 26 26 80 88 96 76 146 Greatest Overweight (x) 12 | . 1 1 1 1 2 . . 12 2 Average Overweight (x) . | . . 1 1 1 . . . . . Largest Inventory Capacity 15 | 8 15 15 15 15 15 15 15 15 15 Average Capacity 14 | 6 11 15 15 15 15 15 15 15 14 Most Carried 15 | 2 9 11 15 15 15 15 15 15 15 Average Carried 13 | . 6 9 12 14 14 14 14 14 13 Final Capacity 15 | 8 15 15 15 15 15 15 15 15 5 Final Carried 15 | 2 9 11 15 14 12 15 12 15 5 Class Distribution -------------------- 51% | Mutant 40% | Scavenger-Gunner 6% | Gunner Dominant Class ---------------- Mutant | -10/Materials Mutant | -10/Mines Mutant | -9/Materials Mutant | -8/Materials Mutant | -8/Storage Scavenger-Gunner | -7/Factory Scavenger-Gunner | -6/Factory Scavenger-Gunner | -5/Factory Scavenger-Gunner | -4/Factory Resources | -11 -10 -10 -9 -8 -8 -7 -6 -5 -4 ----------- Run | Yrd Mat Min Mat Mat Sto Fac Fac Fac Fac Matter Collected 2863 | 205 326 76 . 58 367 509 393 532 397 Remotely . | . . . . . . . . . . Salvage Created 4093 | . 273 111 . 58 748 995 566 623 719 Parts 224 | . 30 1 . 3 38 45 17 41 49 Haulers Intercepted 5 | . 1 . . 1 1 1 1 . . Recyclers Shooed 2 | . . . . . . 1 . 1 . Parts Field Recycled . | . . . . . . . . . . Retrieved Matter . | . . . . . . . . . . Parts Self-Destructed . | . . . . . . . . . . Prevented . | . . . . . . . . . . Kills | -11 -10 -10 -9 -8 -8 -7 -6 -5 -4 ------- Run | Yrd Mat Min Mat Mat Sto Fac Fac Fac Fac Combat Hostiles Destroyed 82 | . 8 . . . 13 17 12 14 18 Guns 59 | . 8 . . . 10 17 7 11 6 AOE 20 | . . . . . 1 . 4 3 12 Classes Destroyed 15 | . 5 . . . 3 4 1 . 2 Worker 3 | . . . . . . 2 . 1 . Builder 5 | . 1 . . . . . . 2 2 Tunneler 1 | . . . . . . . . . 1 Hauler 5 | . 1 . . 1 1 1 1 . . Recycler 2 | . . . . . . 1 1 . . Mechanic 1 | . . . . . . 1 . . . Operator 3 | . 2 . . . . . . . 1 Watcher 2 | . . . . . . . . . 2 Swarmer 31 | . 6 . . . 1 3 2 6 13 Grunt 29 | . 2 . . . 6 9 7 2 3 Brawler 2 | . . . . . 1 . . 1 . Sentry 9 | . . . . . 4 2 2 1 . Hunter 3 | . . . . . 1 1 . 1 . Programmer 6 | . . . . . . 2 . 2 2 Behemoth 2 | . . . . . . . 1 1 . Best Kill Streak 9 | . 4 . . 1 3 9 5 5 7 Combat Bots Only 5 | . 3 . . . 3 4 5 5 5 Max Kills in Single Turn 5 | . 1 1 . 1 1 2 3 4 5 Gunslinging 1 | . . . . . . . . 1 . Exploded 3 | . . . . . 1 . 3 3 3 Melee . | . . . . . . . . . . Uniques/NPCs Destroyed 1 | . . 1 . . . . . . . YI-UF0 (-10/Mines) Combat | -11 -10 -10 -9 -8 -8 -7 -6 -5 -4 -------- Run | Yrd Mat Min Mat Mat Sto Fac Fac Fac Fac Hostile Shots Fired 631 | . 63 . . . 93 111 90 122 152 Missed 185 | . 17 . . . 21 26 31 39 51 Damage Taken 7497 | . 459 . . 34 1047 1000 754 1984 2219 Core 1042 | . 104 . . . 120 118 84 175 441 Absorbed by Shields . | . . . . . . . . . . Ignored by Resistances 88 | . . . . . . 48 40 . . Core Remaining (%) 84 | 100 . 58 100 . 78 83 90 82 . Volleys Fired 210 | . 38 10 . 1 44 40 23 26 28 Largest 4 | . 2 2 . 2 2 4 4 4 4 Hottest 271 | . 90 46 . 90 105 164 249 271 249 Shots Fired 549 | . 76 20 . 2 85 112 82 81 91 Gun 541 | . 76 20 . 2 85 112 80 80 86 Cannon . | . . . . . . . . . . Launcher 8 | . . . . . . . 2 1 5 Special . | . . . . . . . . . . Kinetic 314 | . 45 20 . . 41 86 49 44 29 Thermal 159 | . 6 . . . 13 26 31 36 47 Explosive 8 | . . . . . . . 2 1 5 Electromagnetic 68 | . 25 . . 2 31 . . . 10 Robot Hit Streak 20 | . 7 7 . 9 20 17 17 14 7 Robot Miss Streak 14 | . 4 4 . . 2 9 7 6 14 Penetration Max 1 | . . . . . . 1 . 1 . Secondary Targets 9 | . 1 . . . 1 4 . 2 1 Max Gunslinging Chain 1 | . 1 . . . 1 1 . 1 1 Shots Hit Robots 401 | . 42 13 . 2 74 87 63 67 53 Core Hits 309 | . 15 4 . 1 26 64 72 63 64 Critical Kills 2 | . . . . . . 1 . 1 . Critical Parts Destroyed 3 | . . . . . 1 . . 2 . Critical Strikes 15 | . 1 . . . 2 1 . 5 6 Burn 8 | . . . . . . . . 2 6 Destroy 4 | . . . . . . 1 . 3 . Corrupt 2 | . 1 . . . 1 . . . . Smash 1 | . . . . . 1 . . . . Melee Attacks 21 | . . . . . 16 3 . . 2 Impact 17 | . . . . . 16 1 . . . Slashing . | . . . . . . . . . . Piercing . | . . . . . . . . . . Sneak Attacks 4 | . . . . . 1 3 . . . Combat Hostiles . | . . . . . . . . . . Follow-up Attacks . | . . . . . . . . . . Damage Inflicted 10253 | . 612 215 . 66 1474 1799 2136 1874 2077 Guns 7650 | . 612 215 . 32 1070 1718 1497 1476 1030 Cannons . | . . . . . . . . . . Explosions 2204 | . . . . 34 90 . 639 396 1045 Melee 384 | . . . . . 314 70 . . . Ramming 15 | . . . . . . 11 . 2 2 Kinetic 4120 | . 431 215 . . 484 1052 719 829 390 Thermal 3168 | . 13 . . 34 410 666 778 747 520 Explosive 1795 | . . . . . . . 639 215 941 Electromagnetic 771 | . 168 . . 32 266 . . 81 224 Impact 384 | . . . . . 314 70 . . . Slashing . | . . . . . . . . . . Piercing . | . . . . . . . . . . Highest Corruption 12 | . . . . . 1 2 . 12 11 Average Corruption 4 | . . . . . 1 2 . 6 3 Corruption Purged . | . . . . . . . . . . Corruption Blocked . | . . . . . . . . . . Effects 39 | . . . . . . 3 . 18 18 Message Errors 13 | . . . . . . . . 7 6 Matter Fused 9 | . . . . . . 1 . 3 5 Heat Flow Errors 5 | . . . . . . 1 . 1 3 Energy Discharges 1 | . . . . . . . . 1 . Parts Rejected 1 | . . . . . . . . . 1 Parts Fused 2 | . . . . . . 1 . 1 . Data Loss (minor) 3 | . . . . . . . . 1 2 Misfires 1 | . . . . . . . . 1 . Weapon Failures 4 | . . . . . . . . 3 1 Overload Shots . | . . . . . . . . . . Overflow Damage 80 | . . . . . 37 30 9 1 3 Projectiles . | . . . . . . . . . . Explosions 17 | . . . . . 4 . 9 1 3 Melee 63 | . . . . . 33 30 . . . Knockbacks 5 | . . . . . 4 1 . . . Impact 5 | . . . . . 4 1 . . . Kinetic . | . . . . . . . . . . Secondary . | . . . . . . . . . . Self-Inflicted Damage 341 | . . . . 34 28 . . 199 80 Shots 12 | . . . . 1 1 . . 7 3 Rammed 2 | . . . . . . 1 . . 1 Targets Rammed 3 | . . . . . . 1 . 1 1 Kicked 1 | . . . . . . . . 1 . Crushed . | . . . . . . . . . . Highest Temperature 450 | . 141 . . 42 324 450 . 146 272 Average Temperature 107 | . 47 . . 24 98 153 . 80 114 Received Heat Transfer 1479 | . 102 . . . 369 312 234 213 249 Effects 7 | . . . . . 4 3 . . . Shutdowns 1 | . . . . . . 1 . . . Energy Bleed 2 | . . . . . 2 . . . . Interference 4 | . . . . . 2 2 . . . Siege Activations . | . . . . . . . . . . Robots Corrupted 3 | . . . . . 2 1 . . . Combat Hostiles 2 | . . . . . 2 . . . . Parts Fried 3 | . 2 . . . 1 . . . . Impact Corruptions 4 | . . . . . 2 2 . . . Robots Melted 1 | . . . . . . . 1 . . Combat Hostiles 1 | . . . . . . . 1 . . Parts Melted 12 | . . . . . . 1 3 4 4 Heat Transferred 7024 | . 37 . . 50 825 1500 1712 1531 1369 Parts Sabotaged . | . . . . . . . . . . Parts Stolen . | . . . . . . . . . . Parts Stripped . | . . . . . . . . . . Power Chain Reactions 2 | . . . . 1 1 . . . . Alert | -11 -10 -10 -9 -8 -8 -7 -6 -5 -4 ------- Run | Yrd Mat Min Mat Mat Sto Fac Fac Fac Fac Peak Influence 538 | . 289 56 21 20 292 257 244 249 538 Initial 132 | . . 56 21 8 8 132 29 53 48 Average 110 | . 117 56 21 14 60 142 98 103 229 Maximum Alert Level 2 | . 1 . . . 1 1 1 1 2 Low Security (%) 79 | 100 78 100 100 100 91 69 93 86 37 Level 1 20 | . 21 . . . 8 30 6 13 62 Level 2 . | . . . . . . . . . . Level 3 . | . . . . . . . . . . Level 4 . | . . . . . . . . . . Level 5 . | . . . . . . . . . . High Security . | . . . . . . . . . . Max Security . | . . . . . . . . . . Squads Dispatched 16 | . 2 . . . 2 3 3 4 2 Investigation 2 | . 1 . . . 1 . . . . Extermination 5 | . . . . . . 2 . 2 1 Reinforcement 6 | . 1 . . . 1 1 . 2 1 Assault . | . . . . . . . . . . Garrison 3 | . . . . . . . 3 . . Intercept . | . . . . . . . . . . Searches Triggered . | . . . . . . . . . . Construction Impeded 2 | . . . . . . . . 1 1 Haulers Reinforced . | . . . . . . . . . . Active Scanning Responses . | . . . . . . . . . . Cargo Convoy Interrupts . | . . . . . . . . . . Stealth | -11 -10 -10 -9 -8 -8 -7 -6 -5 -4 --------- Run | Yrd Mat Min Mat Mat Sto Fac Fac Fac Fac Distress Signals 10 | . 1 . . . 5 2 . 1 1 Communications Jammed 19 | . . . . . . . . . 19 Distress Signals 19 | . . . . . . . . . 19 Times Spotted 129 | . 19 . . 1 21 29 17 15 27 Peak Tracking Total 7 | . 5 . . 1 4 7 4 6 6 Tactical Retreats 11 | . 1 . . . 4 . 2 1 3 Traps | -11 -10 -10 -9 -8 -8 -7 -6 -5 -4 ------- Run | Yrd Mat Min Mat Mat Sto Fac Fac Fac Fac Traps Triggered 9 | . 2 . . . 3 1 . 2 1 Indirectly . | . . . . . . . . . . Trap Hack Attempts . | . . . . . . . . . . Triggered . | . . . . . . . . . . Disarmed . | . . . . . . . . . . Reprogrammed . | . . . . . . . . . . Reused . | . . . . . . . . . . Traps Extracted . | . . . . . . . . . . Installed . | . . . . . . . . . . Triggered . | . . . . . . . . . . Machines | -11 -10 -10 -9 -8 -8 -7 -6 -5 -4 ---------- Run | Yrd Mat Min Mat Mat Sto Fac Fac Fac Fac Machines Disabled 8 | . . . . . 2 . . 2 4 Max in Single Turn 4 | . . . . . 1 . . 1 4 Garrison Access 2 | . . . . . 1 . 1 . . Machines Repaired . | . . . . . . . . . . Machines Dismantled . | . . . . . . . . . . Machines Sabotaged . | . . . . . . . . . . Overloaded Fab Kills . | . . . . . . . . . . Hacking | -11 -10 -10 -9 -8 -8 -7 -6 -5 -4 --------- Run | Yrd Mat Min Mat Mat Sto Fac Fac Fac Fac Machines Accessed 5 | . 1 . . . 2 . 2 . . Terminals 2 | . 1 . . . 1 . . . . Fabricators . | . . . . . . . . . . Repair Stations . | . . . . . . . . . . Recycling Units . | . . . . . . . . . . Scanalyzers 1 | . . . . . . . 1 . . Garrison Access 2 | . . . . . 1 . 1 . . Total Hacks 13 | . 3 . . . 4 . 6 . . Successful 7 | . 1 . . . 2 . 4 . . Failed 6 | . 2 . . . 2 . 2 . . Catastrophic 1 | . 1 . . . . . . . . Database Lockouts . | . . . . . . . . . . Manual 3 | . 3 . . . . . . . . Terminals 4 | . 3 . . . 1 . . . . Fabricators . | . . . . . . . . . . Repair Stations . | . . . . . . . . . . Recycling Units . | . . . . . . . . . . Scanalyzers 5 | . . . . . . . 5 . . Garrison Access 4 | . . . . . 3 . 1 . . Terminal Hacks 1 | . . . . . 1 . . . . Open Door 1 | . . . . . 1 . . . . Fabricator Hacks . | . . . . . . . . . . Repair Station Hacks . | . . . . . . . . . . Recycling Unit Hacks . | . . . . . . . . . . Scanalyzer 3 | . . . . . . . 3 . . Insert Component 2 | . . . . . . . 2 . . Analyze 1 | . . . . . . . 1 . . Garrison Access Hacks 2 | . . . . . 1 . 1 . . Seal Access 2 | . . . . . 1 . 1 . . Unauthorized Hacks 1 | . 1 . . . . . . . . Terminals 1 | . 1 . . . . . . . . Assimilate 1 | . 1 . . . . . . . . Fabricators . | . . . . . . . . . . Repair Stations . | . . . . . . . . . . Recycling Units . | . . . . . . . . . . Scanalyzers . | . . . . . . . . . . Garrison Access . | . . . . . . . . . . Data Cores Recovered 2 | . 1 . . . . . . . 1 Used . | . . . . . . . . . . Hacking Detections 4 | . 1 . . . 2 . 1 . . Full Trace Events . | . . . . . . . . . . Feedback Events . | . . . . . . . . . . Feedback Blocked . | . . . . . . . . . . Robot Schematics Acquired . | . . . . . . . . . . Robots Built . | . . . . . . . . . . Authchips . | . . . . . . . . . . Time . | . . . . . . . . . . Total Robot Build Rating . | . . . . . . . . . . Part Schematics Acquired 1 | . . . . . . . 1 . . Parts Built . | . . . . . . . . . . Authchips . | . . . . . . . . . . Time . | . . . . . . . . . . Total Part Build Rating . | . . . . . . . . . . Parts Repaired . | . . . . . . . . . . Time . | . . . . . . . . . . Parts Recycled . | . . . . . . . . . . Recycled Matter . | . . . . . . . . . . Retrieved Matter . | . . . . . . . . . . Retrieved Components . | . . . . . . . . . . Parts Scanalyzed 1 | . . . . . . . 1 . . Part Schematics Acquired 1 | . . . . . . . 1 . . Parts Damaged 1 | . . . . . . . 1 . . Bothacking | -11 -10 -10 -9 -8 -8 -7 -6 -5 -4 ------------ Run | Yrd Mat Min Mat Mat Sto Fac Fac Fac Fac Used RIF Installer . | . . . . . . . . . . Robots Hacked 2 | . . . . . . 1 . . 1 Non-combat 1 | . . . . . . 1 . . . Combat 1 | . . . . . . . . . 1 Robot Hacks Applied 3 | . . . . . . 2 . . 1 parse_system 1 | . . . . . . . . . 1 no_distress 1 | . . . . . . 1 . . . find_station 1 | . . . . . . 1 . . . Relay Couplers Released . | . . . . . . . . . . Fabnet Peak Effective % . | . . . . . . . . . . Robots Rewired . | . . . . . . . . . . Allies Hacked . | . . . . . . . . . . Hacks Repelled . | . . . . . . . . . . Allies | -11 -10 -10 -9 -8 -8 -7 -6 -5 -4 -------- Run | Yrd Mat Min Mat Mat Sto Fac Fac Fac Fac Total Allies . | . . . . . . . . . . Largest Group . | . . . . . . . . . . Highest-Rated Group . | . . . . . . . . . . Highest-Rated Ally . | . . . . . . . . . . Total Orders 1 | . . . . . 1 . . . . EXPLORE 1 | . . . . . 1 . . . . Ally Attacks . | . . . . . . . . . . Total Damage . | . . . . . . . . . . Kills . | . . . . . . . . . . Allies Corrupted . | . . . . . . . . . . Allies Melted . | . . . . . . . . . . Intel | -11 -10 -10 -9 -8 -8 -7 -6 -5 -4 ------- Run | Yrd Mat Min Mat Mat Sto Fac Fac Fac Fac Robot Analysis Total . | . . . . . . . . . . Derelict Logs Recovered . | . . . . . . . . . . Drone Launches 16 | . . . . . 16 . . . . Drone Recoveries . | . . . . . . . . . . Exploration | -11 -10 -10 -9 -8 -8 -7 -6 -5 -4 ------------- Run | Yrd Mat Min Mat Mat Sto Fac Fac Fac Fac Turns Passed 7254 | 45 553 98 168 272 1835 1703 854 851 875 Spaces Moved 3461 | 38 423 61 145 234 428 873 453 388 418 Core 25 | 1 . . . . . . . 1 23 Treads 1939 | . . . . 4 75 873 453 307 227 Legs 31 | . . . . . . . . 31 . Wheels 1249 | 37 423 61 145 230 353 . . . . Hover 217 | . . . . . . . . 49 168 Flight . | . . . . . . . . . . Fastest Speed 48 | 50 90 105 105 105 105 160 160 126 48 Average Speed 137 | 89 97 105 105 107 116 164 162 183 114 Slowest Speed 650 | 100 105 105 105 250 240 166 165 650 160 Overloaded Moves . | . . . . . . . . . . Propulsion Burnouts . | . . . . . . . . . . Robots Hopped . | . . . . . . . . . . Cave-ins Triggered . | . . . . . . . . . . Exploration Rate (%) 23 | 4 59 20 21 20 50 28 12 14 10 Regions Visited 9 Branch Regions 2 Pre-discovered Areas . | . . . . . . . . . . Known Exits Taken 1 | . . . . . . 1 . . . Unknown Exits Taken 8 | 1 1 1 1 1 1 . 1 1 . Scrap Searched 1 | . . 1 . . . . . . . Spaces Dug . | . . . . . . . . . . Terrain Destroyed 170 | . . . . 5 6 . 14 35 110 Melee . | . . . . . . . . . . Projectile 1 | . . . . . . . . 1 . AOE 169 | . . . . 5 6 . 14 34 110 Terrain Rammed . | . . . . . . . . . . Walls Destroyed . | . . . . . . . . . . Machines Disabled . | . . . . . . . . . . Actions | -11 -10 -10 -9 -8 -8 -7 -6 -5 -4 --------- Run | Yrd Mat Min Mat Mat Sto Fac Fac Fac Fac Total 5454 | 45 490 74 158 257 1660 1061 511 455 743 Wait 1518 | . 10 1 1 . 1126 115 14 2 249 Move 3452 | 37 422 60 144 233 427 872 452 387 418 Hop . | . . . . . . . . . . Pick Up 64 | 2 12 2 6 8 6 5 6 10 7 Fast Attach 35 | 6 1 . . 2 3 3 2 10 8 Attach 26 | . 2 . 1 1 2 1 4 7 8 Detach 5 | . . . . 1 . . . . 4 Swap 60 | . 2 1 5 1 14 14 4 9 10 Drop 45 | . 3 . 1 10 7 7 6 3 8 Fire 210 | . 38 10 . 1 44 40 23 26 28 Melee 21 | . . . . . 16 3 . . 2 Ram . | . . . . . . . . . . Kick 1 | . . . . . . . . 1 . Crush 2 | . . . . . . 1 . . 1 Escape Stasis 8 | . . . . . 8 . . . . Rewire . | . . . . . . . . . . Trap . | . . . . . . . . . . Miscellaneous 7 | . . . . . 7 . . . . Route ------- -11/Scrapyard -10/Materials (discovered 2 exits: [*Mat] / [*Min]) -10/Mines (discovered 2 exits: [*Mat x2]) -9/Materials -8/Materials -8/Storage -7/Factory (discovered 2 exits: *Fac x2) -6/Factory -5/Factory -4/Factory History --------- Turn | Location | Event 27 | -11/Scrapyard | Discovered new exit (range 15) 46 | -11/Scrapyard | Entered Materials 131 | -10/Materials | Discovered new exit (range 16) 191 | -10/Materials | Discovered new exit (range 7) 311 | -10/Materials | Build established: Mutant 599 | -10/Materials | Entered Mines 621 | -10/Mines | YI-UF0 nonchalantly dropped a Grenade Launcher on the ground 632 | -10/Mines | Discovered new exit (range 14) 653 | -10/Mines | Discovered new exit (range 9) 669 | -10/Mines | Murdered YI-UF0 697 | -10/Mines | Entered Materials 697 | -9/Materials | Evolved 2 slots: Utility x2 854 | -9/Materials | Discovered new exit (range 10) 865 | -9/Materials | Entered another Materials area 865 | -8/Materials | Evolved 2 slots: Propulsion x2 1009 | -8/Materials | Discovered new exit (range 15) 1137 | -8/Materials | Entered Storage 1283 | -8/Storage | Lost 9 allies 2939 | -8/Storage | Discovered new exit (range 16) 2972 | -8/Storage | Entered Factory 2972 | -7/Factory | Evolved 2 slots: Weapon x2 4065 | -7/Factory | Discovered new exit (range 5) 4157 | -7/Factory | Identified exit to Factory 4171 | -7/Factory | Build established: Scavenger-Gunner 4609 | -7/Factory | Discovered exit to Factory (range 8) 4675 | -7/Factory | Entered another Factory area 4675 | -6/Factory | Evolved 2 slots: Utility x2 4930 | -6/Factory | Garrison activated, responded to threat 4948 | -6/Factory | Found Prototype Launcher 4948 | -6/Factory | Identified Scatter Rocket Array 4951 | -6/Factory | Found Scatter Rocket Array 4970 | -6/Factory | Found Faulty Scatter Rocket Array 5040 | -6/Factory | Found Scatter Rocket Array 5372 | -6/Factory | Spotted B-75 Beast 5400 | -6/Factory | Destroyed B-75 Beast 5408 | -6/Factory | Discovered new exit (range 13) 5446 | -6/Factory | Lost 4 parts (1p1n1u1w) 5529 | -6/Factory | Entered another Factory area 5529 | -5/Factory | Evolved 2 slots: Power x1, Utility x1 5893 | -5/Factory | Lost 4 parts (2n1u1w) 6074 | -5/Factory | Lost 6 parts (1p1n2u2w) 6114 | -5/Factory | System corruption reached 10% 6213 | -5/Factory | Spotted B-75 Beast 6232 | -5/Factory | Destroyed B-75 Beast 6314 | -5/Factory | Discovered new exit (range 16) 6341 | -5/Factory | Lost 5 parts (1p2n1u1w) 6380 | -5/Factory | Entered another Factory area 6380 | -4/Factory | Evolved 2 slots: Propulsion x1, Utility x1 6768 | -4/Factory | Lost 4 parts (1u3w) 7157 | -4/Factory | Lost 4 parts (1u3w) 7205 | -4/Factory | Spotted B-86 Titan 7227 | -4/Factory | Lost 3 parts (2n1w) 7230 | -4/Factory | System corruption reached 10% 7255 | -4/Factory | Self-destructed Last Messages --------------- 07189_ R-10 Processor collects VTOL Module. 07190_ Dropped Lrg. Storage Unit. 07196_ R-10 Processor collects Imp. Cooling System. 07196_ Imp. Datajack destroyed. 07197_ The unstable cave ceiling collapses. 07208_ :ZYOH,FJU73FAU>X,0/ 07229_ Imp. Gravmag System destroyed. 07229_ Neutrino Reactor explodes. 07229_ Door malfunctions. 07231_ DG2B8V2&5IMMDGSAKU6JO#J00I< 07236_ Transmission Jammer destroyed. 07236_ Adv. Reaction Control System destroyed. 07242_ P-70 Sage resets A-15 Conveyor, system corruption cleaned. 07251_ System corrupted: Matter fused (-6). Map ----- +----------------------------------------------------+ | ?????????????????????????????????????????????????? | | ?????????????????????????????????????????????????? | | ?????????????????????????????????????????????????? | | ########################?????????????????????????? | | #????????????????????????? | | ######### ########### ?????????????????????????? | | #???????# #?????????# #????????????????????????? | | #??????##/########### #????????????????????????? | | #??????# # #????????????????????????? | | #??????# # #????????????????????????? | | +??????# # #????????????????????????? | | #??????# #p#????????????????????????? | | #??????# # ###??????????????????????? | | #??????# # #??????????????????????? | | #??????# + #??????????????????????? | | #??????# #p #??????????????????????? | | #??????# # #??????????????????????? | | #??????# = # #??????????????????????? | | #??????# # #??????????????????????? | | #??????# ! # #??????????????????????? | | #??????############## #??????????????????????? | | ???????????????????# #??????????????????????? | | ??????????????????# #??????????????????????? | | ####??????????????????# #??????????????????????? | | #?????????????????????# #??????????????????????? | | #?????????????????????# @#??????????????????????? | | #?????????????????????# #??????????????????????? | | #?????????????????????# #??????????????????????? | | #?????????????????????# +??????????????????????? | | ??????????????????????# #??????????????????????? | | ??????????????????????# #??????????????????????? | | ??????????????????????# #??????????????????????? | | ??????????????????????# #??????????????????????? | | ??????????????????????# #??????????????????????? | | ?????????????????????? ??????????????????????? | | ?????????????????????? ??????????????????????? | | ?????????????????????? ??????????????????????? | | ?????????????????????#####+??????????????????????? | | ?????????????????????????????????????????????????? | | ?????????????????????????????????????????????????? | | ?????????????????????????????????????????????????? | | ?????????????????????????????????????????????????? | | ?????????????????????????????????????????????????? | | ?????????????????????????????????????????????????? | | ?????????????????????????????????????????????????? | | ?????????????????????????????????????????????????? | | ?????????????????????????????????????????????????? | | ?????????????????????????????????????????????????? | | ?????????????????????????????????????????????????? | | ?????????????????????????????????????????????????? | +----------------------------------------------------+ Best States ------------- Heat Dissipation 106 Energy Generation 28 Energy Capacity 360 Matter Stores 300 Matter Capacity 300 Sight Range 22 Terrain Scan Density 10 Jamming Range 12 Base Temperature (-) 100 Armor Coverage 225 Resistance: TH 10 Evasion (%) 65 Targeting Accuracy 6 Target Analysis 6 Core Analysis 6 Recoil Reduction 5 Salvage Targeting 2 Item Schematics ----------------- Scatter Rocket Array | -6/Factory | Scanalyzed Robot Schematics ------------------ None Fabricated ------------ Nothing Alien Tech Used ----------------- None Achievements -------------- None Challenges ------------ None Game ------ Seed SkeletonSalvagingFirepult Manual? 0 Play Time 00:54:40 Cumulative 134.6 hours Start 2024.12.10 @ 07:42:37 End 2025.01.11 @ 19:25:22 Sessions 2 Manual Loads 0 Difficulty Rogue Special Mode None Game No. 228 Rogue 228 Adventurer 0 Explorer 0 Win Type - Total 1 Types 1/0/0/0/0/0/0/0/0 Lore% 52 Gallery% 61 Achievement% 48 Wizard Run 0 Options --------- Layout 0 ASCII 0 Keyboard 1 Movement Numpad Keybinds 0 Fullscreen 2 Font 18/SmallcapsGlow Map View 76x50 Zoom Use 0% Tactical HUD 1 Map Filters NONE Filters NONE Steam 1 RUN: 770c232c-a2e2-4d8f-a0a5-a58fdf5e20b0